lending/lending_fUSD_20240124
["ID","MTS","AMOUNT","RATE_DAILY","PERIOD"]
[312618420,1706100644962,-24540.14718703,0.00039835,5]
[312618421,1706100644971,-331.46036228,0.00039835,5]
[312618422,1706100644980,-5508.29115735,0.00039835,5]
[312618423,1706100644990,-153.04607514,0.00039835,30]
[312618424,1706100644999,-199497.529999,0.00039835,30]
[312618425,1706100645008,-300.0,0.00039835,31]
[312618426,1706100645017,-8905.42450661,0.00039835,32]
[312618427,1706100645027,-289.37937981,0.00039835,120]
[312618428,1706100645037,-420.88627154,0.00039835,30]
[312618429,1706100645047,-1001.13054671,0.00039835,120]
[312618430,1706100645056,-207.45507856,0.00039835,30]
[312618431,1706100645066,-227.0,0.00039835,120]
[312618432,1706100645075,-271.75509939,0.00039835,120]
[312618433,1706100645086,-189.2430844,0.00039835,90]
[312618434,1706100645096,-185.53540632,0.00039835,120]
[312618435,1706100645106,-285.33766524,0.00039835,120]
[312618436,1706100645116,-171.65420786,0.00039835,120]
[312618437,1706100645126,-150.06902226,0.00039835,120]
[312618438,1706100645135,-158.68446191,0.00039835,30]
[312618439,1706100645144,-533.17114921,0.00039835,30]
[312618440,1706100645153,-174.62600779,0.00039835,120]
[312618441,1706100645162,-289.44853306,0.00039835,120]
[312618442,1706100645171,-2325.3490591,0.00039835,7]
[312618443,1706100645180,-167.38887944,0.00039835,7]
[312618444,1706100645189,-525.55748824,0.00039835,120]
[312618445,1706100645198,-447.91230769,0.00039835,120]
[312618446,1706100645207,-156.87160425,0.00039835,30]
[312618447,1706100645217,-189.76314846,0.00039835,7]
[312618448,1706100645226,-188.33790558,0.00039835,14]
[312618449,1706100645235,-444.86289862,0.00039835,120]
[312618450,1706100645244,-1821.25994433,0.00039835,120]
[312618451,1706100645254,-1793.97623732,0.00039835,120]
[312618452,1706100645263,-32416.22,0.00039835,30]
[312618453,1706100645272,-171.21106242,0.00039835,30]
[312618454,1706100645282,-176.68773051,0.00039835,30]
[312618455,1706100645290,-1103.52894234,0.00039835,30]
[312618456,1706100645300,-585.0,0.00039835,120]
[312618457,1706100645308,-451.30017421,0.00039835,90]
[312618458,1706100645318,-222.3827059,0.00039835,120]
[312618459,1706100645328,-191.8402193,0.00039835,60]
[312618460,1706100645339,-224.85800269,0.00039835,120]
[312618461,1706100645349,-8853.5044,0.00039835,7]
[312618462,1706100645358,-614595.8901648,0.00039835,32]
[312618463,1706100645367,-250.0,0.00039835,50]
[312618464,1706100645376,-330.25576533,0.00039835,120]
[312618465,1706100645386,-20000.0,0.00039835,30]
[312618466,1706100645395,-10000.0,0.00039835,30]
[312618467,1706100645405,-1047.71312959,0.00039835,7]
[312618468,1706100645414,-284.0,0.00039835,120]
[312618469,1706100645423,-11082.76293409,0.00039835,14]
[312618470,1706100645432,-1808.132171,0.00039835,30]
[312618471,1706100645441,-306.179395,0.00039835,30]
[312618472,1706100645451,-55629.30378672,0.00039865,2]
[312618473,1706100645460,-368.1093534,0.000399,9]
[312618474,1706100645470,-1082.12464343,0.0003999,2]
[312618475,1706100645479,-151.82912174,0.0003999,6]
[312618476,1706100645490,-961.0,0.0003999,2]
[312618477,1706100645499,-519.0,0.0003999,2]
[312618478,1706100645509,-100000.0,0.0004,20]
[312618479,1706100645520,-1332.89526091,0.0004,5]
[312618480,1706100645530,-32342.0,0.0004,4]
[312618481,1706100645539,-155.0,0.0004,2]
[312618482,1706100645549,-3541.71462604,0.0004,2]
[312618483,1706100645558,-18124.74363645,0.0004,15]
[312618484,1706100645567,-8913.75,0.0004,5]
[312618485,1706100645576,-400.38,0.0004,2]
[312618486,1706100645587,-454.27643229,0.0004,2]
[312618487,1706100645597,-76829.16203422,0.0004,6]
[312618492,1706100645795,-300.0,0.0004,17]
[312618493,1706100645805,-2500.0,0.0004,7]
[312618494,1706100645814,-2287.7328009,0.0004,2]
[312618495,1706100645823,-1160.70224326,0.0004,4]
[312618497,1706100645834,-183.94752541,0.0004,4]
[312618499,1706100645843,-2000.0,0.0004,2]
[312618501,1706100645853,-1366.85,0.0004,18]
[312618503,1706100645863,-1190.11516458,0.0004,2]
[312618506,1706100645872,-2003.9173,0.0004,3]
[312618507,1706100645882,-5460.30273873,0.0004,2]
[312618508,1706100645891,-3334.77704055,0.0004,4]
[312618509,1706100645901,-2371.71304237,0.0004,4]
[312618510,1706100645910,-2276.94329646,0.0004,4]
[312618511,1706100645919,-1238.53339838,0.0004,4]
[312618512,1706100645929,-2705.32029854,0.0004,4]
[312618513,1706100645938,-1500.0,0.0004,90]
[312618514,1706100645948,-168.84,0.0004,7]
[312618515,1706100645957,-1330.48,0.0004,7]
[312618516,1706100645966,-1688.0,0.0004,14]
[312618517,1706100645975,-1688.0,0.0004,14]
[312618518,1706100645985,-1688.0,0.0004,14]
[312618519,1706100645994,-1093.64,0.0004,14]
[312618520,1706100646003,-1688.0,0.0004,14]
[312618521,1706100646012,-399.61194094,0.0004,30]
[312618522,1706100646021,-158.09002317,0.0004,30]
[312618523,1706100646030,-887.69524023,0.0004,7]
[312618524,1706100646039,-2088.25871693,0.0004,4]
[312618525,1706100646048,-757.83883616,0.0004,2]
[312618526,1706100646057,-155.34135645,0.0004,3]
[312618527,1706100646066,-155.0,0.0004,3]
[312618528,1706100646075,-303.57867546,0.0004,14]
[312618529,1706100646085,-259.03724686,0.0004,4]
[312618530,1706100646094,-159.28916436,0.0004,4]
[312618531,1706100646103,-26507.91569943,0.0004,15]
[312618532,1706100646112,-1000.0,0.0004,120]
[312618533,1706100646122,-1000.0,0.0004,120]
[312618534,1706100646132,-1000.0,0.0004,120]
[312618535,1706100646141,-841.87365071,0.0004,2]
[312618536,1706100646150,-1000.0,0.0004,120]
[312618537,1706100646159,-1000.0,0.0004,120]
[312618538,1706100646168,-1000.0,0.0004,120]
[312618539,1706100646178,-1000.0,0.0004,120]
[312618540,1706100646187,-1000.0,0.0004,120]
[312618541,1706100646196,-1000.0,0.0004,120]
[312618542,1706100646206,-569.51987199,0.0004,4]
[312618543,1706100646215,-255.0,0.0004,12]
[312618544,1706100646224,-285.12685858,0.0004,4]
[312618545,1706100646233,-255.0,0.0004,12]
[312618546,1706100646242,-255.0,0.0004,12]
[312618547,1706100646252,-255.0,0.0004,12]
[312618548,1706100646262,-255.0,0.0004,12]
[312618549,1706100646271,-255.0,0.0004,12]
[312618550,1706100646280,-150.0,0.0004,11]
[312618551,1706100646289,-255.0,0.0004,12]
[312618552,1706100646298,-150.0,0.0004,15]
[312618553,1706100646307,-450.0,0.0004002,3]
[312618554,1706100646317,-595.0,0.0004009,2]
[312618555,1706100646326,-312.0,0.0004009,2]
[312618556,1706100646338,-154.775071,0.00040147,2]
[312618557,1706100646347,-154.775071,0.00040147,2]
[312618558,1706100646357,-1131.680336,0.00040148,2]
[312618559,1706100646366,-4642.196779,0.00040148,2]
[312618560,1706100646375,-2157.269208,0.00040148,2]
[312618561,1706100646384,-152.508632,0.00040148,2]
[312618562,1706100646393,-4103.39951,0.00040148,2]
[312618563,1706100646402,-150.0,0.00040186,120]
[312618564,1706100646412,-666.0124,0.00040198,10]
[312618565,1706100646421,-2931.05970068,0.00040263,16]
[312618566,1706100646431,-1000.0,0.00040281,10]
[312618567,1706100646440,-1000.0,0.00040281,10]
[312618568,1706100646449,-150.0,0.00040375,2]
[312618569,1706100646459,-666.0124,0.00040498,10]
[312618570,1706100646468,-1330.48,0.000406,7]
[312618571,1706100646477,-152.0,0.00040639,4]
[312618572,1706100646487,-2006.0,0.0004064,2]
[312618573,1706100646497,-205.0,0.00040669,18]
[312618575,1706100646506,-625.02,0.00040684,15]
[312618577,1706100646516,-314.2,0.0004069,2]
[312618578,1706100646527,-151.82912174,0.0004072,9]
[312618579,1706100646538,-1000.0,0.00040733,2]
[312618580,1706100646547,-209.0,0.00040757,2]
[312618581,1706100646556,-666.0124,0.00040798,10]
[312618582,1706100646566,-1001.44488973,0.000409,3]
[312618583,1706100646575,-368.1093534,0.000409,11]
[312618584,1706100646585,-272.92,0.00040986,2]
[312618585,1706100646595,-1501.0,0.0004099,2]
[312618586,1706100646605,-787.0,0.0004099,2]
[312618587,1706100646614,-6853.85321632,0.00040999,2]
[312618588,1706100646623,-100000.0,0.00041,21]
[312618589,1706100646633,-300.0,0.00041,18]
[312618590,1706100646642,-177.31644776,0.00041,5]
[312618591,1706100646651,-3454.23316866,0.00041,4]
[312618592,1706100646660,-1071.0,0.00041,5]
[312618593,1706100646669,-171.0,0.00041,14]
[312618594,1706100646679,-187.0,0.00041,14]
[312618595,1706100646688,-850.0,0.00041,3]
[312618596,1706100646697,-150.0,0.00041,12]
[312618597,1706100646707,-179.0,0.00041,14]
[312618598,1706100646716,-150.0,0.00041,16]
[312618599,1706100646726,-250.0,0.00041095,2]
[312618600,1706100646735,-571.13488274,0.00041095,7]
[312618601,1706100646744,-376.0004165,0.00041095,7]
[312618602,1706100646753,-404.24582285,0.00041095,7]
[312618603,1706100646762,-150.0,0.00041095,3]
[312618604,1706100646771,-151.0,0.00041096,14]
[312618605,1706100646780,-151.0,0.00041096,14]
[312618606,1706100646790,-151.0,0.00041096,14]
[312618607,1706100646799,-151.0,0.00041096,14]
[312618608,1706100646807,-151.0,0.00041096,14]
[312618609,1706100646818,-151.0,0.00041096,14]
[312618610,1706100646827,-151.0,0.00041096,14]
[312618611,1706100646839,-474.464009,0.00041096,14]
[312618612,1706100646849,-474.464009,0.00041096,14]
[312618613,1706100646858,-474.464009,0.00041096,14]
[312618614,1706100646867,-474.464009,0.00041096,14]
[312618615,1706100646876,-474.464009,0.00041096,14]
[312618616,1706100646886,-474.464009,0.00041096,14]
[312618617,1706100646895,-474.464009,0.00041096,14]
[312618618,1706100646905,-474.464009,0.00041096,14]
[312618619,1706100646914,-474.464009,0.00041096,14]
[312618620,1706100646923,-474.464009,0.00041096,14]
[312618621,1706100646933,-474.464009,0.00041096,14]
[312618622,1706100646942,-474.464009,0.00041096,14]
[312618623,1706100646951,-474.464009,0.00041096,14]
[312618624,1706100646960,-474.464009,0.00041096,14]
[312618625,1706100646970,-474.464009,0.00041096,14]
[312618626,1706100646979,-474.464009,0.00041096,14]
[312618627,1706100646988,-474.464009,0.00041096,14]
[312618628,1706100646997,-474.464009,0.00041096,14]
[312618629,1706100647006,-474.464009,0.00041096,14]
[312618630,1706100647016,-474.464018,0.00041096,14]
[312618631,1706100647025,-151.0,0.00041096,14]
[312618632,1706100647034,-151.0,0.00041096,14]
[312618633,1706100647043,-151.0,0.00041096,14]
[312618634,1706100647053,-160.012961,0.00041096,14]
[312618635,1706100647062,-151.0,0.00041096,7]
[312618636,1706100647071,-151.0,0.00041096,7]
[312618637,1706100647081,-151.0,0.00041096,7]
[312618638,1706100647093,-151.0,0.00041096,7]
[312618639,1706100647102,-151.0,0.00041096,7]
[312618640,1706100647111,-151.0,0.00041096,7]
[312618641,1706100647121,-289.932064,0.00041096,7]
[312618642,1706100647131,-175.175195,0.00041096,14]
[312618643,1706100647140,-175.175195,0.00041096,14]
[312618644,1706100647149,-175.175195,0.00041096,14]
[312618645,1706100647159,-175.175195,0.00041096,14]
[312618646,1706100647169,-175.175195,0.00041096,14]
[312618647,1706100647178,-175.175195,0.00041096,14]
[312618648,1706100647188,-175.175195,0.00041096,14]
[312618649,1706100647197,-175.175195,0.00041096,14]
[312618650,1706100647207,-175.175195,0.00041096,14]
[312618651,1706100647216,-175.175195,0.00041096,14]
[312618652,1706100647226,-175.175195,0.00041096,14]
[312618653,1706100647235,-175.175195,0.00041096,14]
[312618654,1706100647244,-175.175195,0.00041096,14]
[312618655,1706100647254,-175.175195,0.00041096,14]
[312618656,1706100647263,-175.175195,0.00041096,14]
[312618657,1706100647272,-175.175195,0.00041096,14]
[312618658,1706100647282,-175.175195,0.00041096,14]
[312618659,1706100647291,-175.175195,0.00041096,14]
[312618660,1706100647301,-175.175195,0.00041096,14]
[312618661,1706100647310,-175.175203,0.00041096,14]
[312618662,1706100647320,-151.0,0.00041096,14]
[312618663,1706100647330,-151.0,0.00041096,14]
[312618664,1706100647342,-151.0,0.00041096,14]
[312618665,1706100647351,-151.0,0.00041096,14]
[312618666,1706100647360,-151.0,0.00041096,14]
[312618667,1706100647370,-151.0,0.00041096,14]
[312618668,1706100647380,-151.0,0.00041096,14]
[312618669,1706100647389,-151.0,0.00041096,14]
[312618670,1706100647399,-151.0,0.00041096,14]
[312618671,1706100647409,-239.774278,0.00041096,14]
[312618672,1706100647418,-151.0,0.00041096,14]
[312618673,1706100647428,-151.0,0.00041096,14]
[312618674,1706100647438,-151.0,0.00041096,14]
[312618675,1706100647448,-151.0,0.00041096,14]
[312618676,1706100647458,-151.0,0.00041096,14]
[312618677,1706100647467,-151.0,0.00041096,14]
[312618678,1706100647476,-151.0,0.00041096,14]
[312618679,1706100647487,-151.0,0.00041096,14]
[312618680,1706100647497,-151.0,0.00041096,14]
[312618681,1706100647507,-187.08233,0.00041096,14]
[312618682,1706100647517,-151.0,0.00041096,14]
[312618683,1706100647529,-151.0,0.00041096,14]
[312618684,1706100647539,-151.0,0.00041096,14]
[312618685,1706100647549,-236.862706,0.00041096,14]
[312618686,1706100647559,-151.0,0.00041096,14]
[312618687,1706100647569,-151.0,0.00041096,14]
[312618688,1706100647581,-151.0,0.00041096,14]
[312618689,1706100647593,-151.0,0.00041096,14]
[312618690,1706100647603,-151.0,0.00041096,14]
[312618691,1706100647612,-151.0,0.00041096,14]
[312618692,1706100647622,-151.0,0.00041096,14]
[312618693,1706100647631,-151.0,0.00041096,14]
[312618694,1706100647641,-151.0,0.00041096,14]
[312618695,1706100647650,-151.0,0.00041096,14]
[312618696,1706100647660,-151.0,0.00041096,14]
[312618697,1706100647669,-151.0,0.00041096,14]
[312618698,1706100647678,-151.0,0.00041096,14]
[312618699,1706100647687,-151.0,0.00041096,14]
[312618700,1706100647697,-151.0,0.00041096,14]
[312618701,1706100647706,-151.0,0.00041096,14]
[312618702,1706100647715,-167.073724,0.00041096,14]
[312618703,1706100647725,-151.0,0.00041096,14]
[312618704,1706100647735,-151.0,0.00041096,14]
[312618705,1706100647745,-198.546131,0.00041096,14]
[312618706,1706100647755,-151.0,0.00041096,14]
[312618707,1706100647764,-171.056279,0.00041096,14]
[312618708,1706100647774,-199.2378,0.00041096,14]
[312618709,1706100647783,-199.2378,0.00041096,14]
[312618710,1706100647793,-199.2378,0.00041096,14]
[312618711,1706100647802,-199.2378,0.00041096,14]
[312618712,1706100647812,-199.2378,0.00041096,14]
[312618713,1706100647822,-199.2378,0.00041096,14]
[312618714,1706100647831,-199.2378,0.00041096,14]
[312618715,1706100647842,-199.2378,0.00041096,14]
[312618716,1706100647851,-199.2378,0.00041096,14]
[312618717,1706100647861,-199.2378,0.00041096,14]
[312618718,1706100647870,-199.2378,0.00041096,14]
[312618719,1706100647880,-199.2378,0.00041096,14]
[312618720,1706100647890,-199.2378,0.00041096,14]
[312618721,1706100647899,-199.2378,0.00041096,14]
[312618722,1706100647909,-199.2378,0.00041096,14]
[312618723,1706100647919,-199.2378,0.00041096,14]
[312618724,1706100647929,-199.2378,0.00041096,14]
[312618725,1706100647938,-199.2378,0.00041096,14]
[312618726,1706100647948,-151.0,0.00041096,14]
[312618727,1706100647958,-151.0,0.00041096,14]
[312618728,1706100647967,-151.0,0.00041096,14]
[312618729,1706100647977,-151.0,0.00041096,14]
[312618730,1706100647987,-151.0,0.00041096,14]
[312618731,1706100647996,-151.0,0.00041096,14]
[312618732,1706100648006,-151.0,0.00041096,14]
[312618733,1706100648015,-151.0,0.00041096,14]
[312618734,1706100648025,-151.0,0.00041096,14]
[312618735,1706100648034,-151.0,0.00041096,14]
[312618736,1706100648044,-151.0,0.00041096,14]
[312618737,1706100648054,-151.0,0.00041096,14]
[312618738,1706100648063,-151.0,0.00041096,14]
[312618739,1706100648073,-151.0,0.00041096,14]
[312618740,1706100648082,-151.0,0.00041096,14]
[312618741,1706100648092,-151.0,0.00041096,14]
[312618742,1706100648101,-151.0,0.00041096,14]
[312618743,1706100648114,-296.856104,0.00041096,14]
[312618744,1706100648191,-327.540954,0.00041096,14]
[312618745,1706100648200,-327.540954,0.00041096,14]
[312618746,1706100648209,-327.540954,0.00041096,14]
[312618747,1706100648219,-327.540954,0.00041096,14]
[312618748,1706100648228,-327.540954,0.00041096,14]
[312618749,1706100648237,-327.540954,0.00041096,14]
[312618750,1706100648246,-327.540954,0.00041096,14]
[312618751,1706100648255,-327.540954,0.00041096,14]
[312618752,1706100648266,-327.540954,0.00041096,14]
[312618753,1706100648275,-327.540954,0.00041096,14]
[312618754,1706100648284,-327.540954,0.00041096,14]
[312618755,1706100648293,-327.540954,0.00041096,14]
[312618756,1706100648302,-327.540954,0.00041096,14]
[312618757,1706100648312,-327.540954,0.00041096,14]
[312618758,1706100648321,-327.540954,0.00041096,14]
[312618759,1706100648332,-327.540954,0.00041096,14]
[312618760,1706100648342,-327.540954,0.00041096,14]
[312618761,1706100648351,-327.540954,0.00041096,14]
[312618762,1706100648361,-151.0,0.00041096,14]
[312618763,1706100648370,-151.0,0.00041096,14]
[312618764,1706100648380,-151.0,0.00041096,14]
[312618765,1706100648389,-151.0,0.00041096,14]
[312618766,1706100648399,-151.0,0.00041096,14]
[312618767,1706100648408,-151.0,0.00041096,14]
[312618768,1706100648417,-151.0,0.00041096,14]
[312618769,1706100648426,-151.0,0.00041096,14]
[312618770,1706100648436,-151.0,0.00041096,14]
[312618771,1706100648445,-151.0,0.00041096,14]
[312618772,1706100648454,-151.0,0.00041096,14]
[312618773,1706100648464,-151.0,0.00041096,14]
[312618774,1706100648473,-151.0,0.00041096,14]
[312618775,1706100648482,-151.0,0.00041096,14]
[312618776,1706100648493,-151.0,0.00041096,14]
[312618777,1706100648505,-151.0,0.00041096,14]
[312618778,1706100648515,-151.0,0.00041096,14]
[312618779,1706100648526,-266.616804,0.00041096,14]
[312618780,1706100648535,-151.0,0.00041096,14]
[312618781,1706100648544,-151.0,0.00041096,14]
[312618782,1706100648554,-151.0,0.00041096,14]
[312618783,1706100648565,-151.0,0.00041096,14]
[312618784,1706100648575,-151.0,0.00041096,14]
[312618785,1706100648586,-151.0,0.00041096,14]
[312618786,1706100648595,-168.385675,0.00041096,14]
[312618787,1706100648605,-151.0,0.00041096,14]
[312618788,1706100648615,-151.0,0.00041096,14]
[312618789,1706100648624,-151.0,0.00041096,14]
[312618790,1706100648633,-151.0,0.00041096,14]
[312618791,1706100648643,-151.0,0.00041096,14]
[312618792,1706100648653,-151.0,0.00041096,14]
[312618793,1706100648663,-151.0,0.00041096,14]
[312618794,1706100648672,-151.0,0.00041096,14]
[312618795,1706100648681,-151.0,0.00041096,14]
[312618796,1706100648690,-151.0,0.00041096,14]
[312618797,1706100648699,-151.0,0.00041096,14]
[312618798,1706100648709,-151.0,0.00041096,14]
[312618799,1706100648719,-151.0,0.00041096,14]
[312618800,1706100648728,-151.0,0.00041096,14]
[312618801,1706100648737,-151.0,0.00041096,14]
[312618802,1706100648746,-183.731025,0.00041096,14]
[312618803,1706100648756,-758.619596,0.00041096,14]
[312618804,1706100648765,-758.619596,0.00041096,14]
[312618805,1706100648775,-758.619596,0.00041096,14]
[312618806,1706100648784,-758.619596,0.00041096,14]
[312618807,1706100648793,-758.619596,0.00041096,14]
[312618808,1706100648802,-758.619596,0.00041096,14]
[312618809,1706100648812,-758.619596,0.00041096,14]
[312618810,1706100648821,-758.619596,0.00041096,14]
[312618811,1706100648830,-758.619596,0.00041096,14]
[312618812,1706100648840,-758.619596,0.00041096,14]
[312618813,1706100648849,-758.619596,0.00041096,14]
[312618814,1706100648858,-758.619596,0.00041096,14]
[312618815,1706100648867,-758.619596,0.00041096,14]
[312618816,1706100648876,-758.619596,0.00041096,14]
[312618817,1706100648885,-758.619596,0.00041096,14]
[312618818,1706100648893,-758.619596,0.00041096,14]
[312618819,1706100648902,-758.619596,0.00041096,14]
[312618820,1706100648911,-758.619596,0.00041096,14]
[312618821,1706100648920,-758.619596,0.00041096,14]
[312618822,1706100648929,-758.61958722,0.00041096,14]
[312618823,1706100648938,-1000.0,0.00041096,2]
[312618824,1706100648947,-1000.0,0.00041096,2]
[312618825,1706100648955,-1000.0,0.00041096,2]
[312618826,1706100648964,-1000.0,0.00041096,2]
[312618827,1706100648973,-1000.0,0.00041096,2]
[312618828,1706100648982,-1000.0,0.00041096,2]
[312618829,1706100648990,-1000.0,0.00041096,2]
[312618830,1706100648999,-1000.0,0.00041096,2]
[312618831,1706100649008,-1000.0,0.00041096,2]
[312618832,1706100649017,-1000.0,0.00041096,2]
[312618833,1706100649025,-468.50253,0.00041096,14]
[312618834,1706100649034,-468.50253,0.00041096,14]
[312618835,1706100649043,-468.50253,0.00041096,14]
[312618836,1706100649052,-468.50253,0.00041096,14]
[312618837,1706100649061,-468.50253,0.00041096,14]
[312618838,1706100649070,-468.50253,0.00041096,14]
[312618839,1706100649078,-468.50253,0.00041096,14]
[312618840,1706100649088,-468.50253,0.00041096,14]
[312618841,1706100649097,-468.50253,0.00041096,14]
[312618842,1706100649105,-468.50253,0.00041096,14]
[312618843,1706100649114,-468.50253,0.00041096,14]
[312618844,1706100649123,-468.50253,0.00041096,14]
[312618845,1706100649132,-468.50253,0.00041096,14]
[312618846,1706100649141,-468.50253,0.00041096,14]
[312618847,1706100649149,-468.50253,0.00041096,14]
[312618848,1706100649159,-468.50253,0.00041096,14]
[312618849,1706100649167,-468.50253,0.00041096,14]
[312618850,1706100649177,-468.50253,0.00041096,14]
[312618851,1706100649186,-468.50253,0.00041096,14]
[312618852,1706100649195,-468.502523,0.00041096,14]
[312618853,1706100649204,-151.0,0.00041096,14]
[312618854,1706100649213,-151.0,0.00041096,14]
[312618855,1706100649223,-151.0,0.00041096,14]
[312618856,1706100649232,-297.451828,0.00041096,14]
[312618857,1706100649241,-1000.0,0.00041096,2]
[312618858,1706100649250,-1000.0,0.00041096,2]
[312618859,1706100649260,-1000.0,0.00041096,2]
[312618860,1706100649274,-1000.0,0.00041096,2]
[312618861,1706100649284,-1000.0,0.00041096,2]
[312618862,1706100649293,-1000.0,0.00041096,2]
[312618863,1706100649302,-1000.0,0.00041096,2]
[312618864,1706100649312,-151.0,0.00041096,14]
[312618865,1706100649321,-1000.0,0.00041096,2]
[312618866,1706100649331,-151.0,0.00041096,14]
[312618867,1706100649343,-1000.0,0.00041096,2]
[312618868,1706100649352,-165.749548,0.00041096,14]
[312618869,1706100649362,-1000.0,0.00041096,2]
[312618870,1706100649372,-1000.0,0.00041096,2]
[312618871,1706100649382,-1000.0,0.00041096,2]
[312618872,1706100649391,-1000.0,0.00041096,2]
[312618873,1706100649400,-1000.0,0.00041096,2]
[312618874,1706100649410,-1000.0,0.00041096,2]
[312618875,1706100649420,-1000.0,0.00041096,2]
[312618876,1706100649430,-1000.0,0.00041096,2]
[312618877,1706100649440,-1000.0,0.00041096,2]
[312618878,1706100649449,-151.0,0.00041096,14]
[312618879,1706100649459,-151.0,0.00041096,14]
[312618880,1706100649469,-151.0,0.00041096,14]
[312618881,1706100649478,-151.0,0.00041096,14]
[312618882,1706100649488,-151.0,0.00041096,14]
[312618883,1706100649498,-151.0,0.00041096,14]
[312618884,1706100649508,-151.0,0.00041096,14]
[312618885,1706100649521,-151.0,0.00041096,14]
[312618886,1706100649530,-151.0,0.00041096,14]
[312618887,1706100649540,-151.0,0.00041096,14]
[312618888,1706100649550,-151.0,0.00041096,14]
[312618889,1706100649560,-151.0,0.00041096,14]
[312618890,1706100649569,-151.0,0.00041096,14]
[312618891,1706100649579,-151.0,0.00041096,14]
[312618892,1706100649589,-151.0,0.00041096,14]
[312618893,1706100649599,-156.651282,0.00041096,14]
[312618894,1706100649608,-327.171525,0.00041096,14]
[312618895,1706100649617,-327.171525,0.00041096,14]
[312618896,1706100649627,-327.171525,0.00041096,14]
[312618897,1706100649636,-327.171525,0.00041096,14]
[312618898,1706100649646,-327.171525,0.00041096,14]
[312618899,1706100649655,-327.171525,0.00041096,14]
[312618900,1706100649664,-327.171525,0.00041096,14]
[312618901,1706100649673,-327.171525,0.00041096,14]
[312618902,1706100649682,-327.171525,0.00041096,14]
[312618903,1706100649691,-327.171525,0.00041096,14]
[312618904,1706100649700,-327.171525,0.00041096,14]
[312618905,1706100649709,-327.171525,0.00041096,14]
[312618906,1706100649718,-327.171525,0.00041096,14]
[312618907,1706100649727,-327.171525,0.00041096,14]
[312618908,1706100649736,-327.171525,0.00041096,14]
[312618909,1706100649746,-327.171525,0.00041096,14]
[312618910,1706100649756,-327.171525,0.00041096,14]
[312618911,1706100649765,-327.171525,0.00041096,14]
[312618912,1706100649774,-327.171525,0.00041096,14]
[312618913,1706100649788,-327.171521,0.00041096,14]
[312618914,1706100649798,-151.0,0.00041096,7]
[312618915,1706100649807,-151.0,0.00041096,7]
[312618916,1706100649816,-151.0,0.00041096,7]
[312618917,1706100649826,-151.0,0.00041096,7]
[312618918,1706100649835,-151.0,0.00041096,7]
[312618919,1706100649846,-151.0,0.00041096,7]
[312618920,1706100649855,-151.0,0.00041096,7]
[312618921,1706100649865,-151.0,0.00041096,7]
[312618922,1706100649875,-151.0,0.00041096,7]
[312618923,1706100649885,-151.0,0.00041096,7]
[312618924,1706100649894,-151.0,0.00041096,7]
[312618925,1706100649903,-151.0,0.00041096,7]
[312618926,1706100649913,-212.0,0.00041096,7]
[312618927,1706100649923,-1000.0,0.00041096,2]
[312618928,1706100649933,-1000.0,0.00041096,2]
[312618929,1706100649942,-522.0,0.00041096,2]
[312618930,1706100649951,-151.0,0.00041096,14]
[312618931,1706100649961,-151.0,0.00041096,14]